fUSD/lending_fUSD_20260616
["ID","MTS","AMOUNT","RATE_DAILY","PERIOD"]
[425179438,1781563855000,-10723.89766522,0.00027111,2]
[425179439,1781563855000,-563.0,0.00027137,2]
[425179440,1781563855000,-764.0,0.00027202,10]
[425179441,1781563855000,-181.63943475,0.00027204,7]
[425179442,1781563855000,-208.47949385,0.00027204,7]
[425179443,1781563855000,-160.86174793,0.00027204,7]
[425179444,1781563855000,-172.66746075,0.00027204,7]
[425179445,1781563855000,-156.08561967,0.00027204,7]
[425179456,1781563855000,-167.14744919,0.00027233,7]
[425179449,1781563855000,-177.78975112,0.00027204,7]
[425179455,1781563855000,-155.3391549,0.00027222,7]
[425179457,1781563855000,-157.85889579,0.00027234,7]
[425179446,1781563855000,-186.40283555,0.00027204,7]
[425179448,1781563855000,-188.74345188,0.00027204,7]
[425179450,1781563855000,-153.1125447,0.00027204,7]
[425179451,1781563855000,-163.93712136,0.00027204,7]
[425179452,1781563855000,-193.48097769,0.00027204,7]
[425179435,1781563855000,-151.0,0.00027,7]
[425179454,1781563855000,-182.1598756,0.00027222,7]
[425179447,1781563855000,-198.88847494,0.00027204,7]
[425179432,1781563855000,-151.0,0.00027,7]
[425179420,1781563855000,-151.0,0.00027,7]
[425179430,1781563855000,-151.0,0.00027,7]
[425179453,1781563855000,-163.97066218,0.00027222,7]
[425179416,1781563855000,-151.0,0.00027,7]
[425179426,1781563855000,-151.0,0.00027,7]
[425179415,1781563855000,-151.0,0.00027,7]
[425179422,1781563855000,-151.0,0.00027,7]
[425179418,1781563855000,-151.0,0.00027,7]
[425179421,1781563855000,-151.0,0.00027,7]
[425179417,1781563855000,-151.0,0.00027,7]
[425179425,1781563855000,-151.0,0.00027,7]
[425179424,1781563855000,-151.0,0.00027,7]
[425179419,1781563855000,-151.0,0.00027,7]
[425179423,1781563855000,-151.0,0.00027,7]
[425179427,1781563855000,-151.0,0.00027,7]
[425179428,1781563855000,-151.0,0.00027,7]
[425179431,1781563855000,-151.0,0.00027,7]
[425179429,1781563855000,-151.0,0.00027,7]
[425179433,1781563855000,-151.0,0.00027,7]
[425179436,1781563855000,-1187.91,0.00027006,2]
[425179434,1781563855000,-151.0,0.00027,7]
[425179437,1781563855000,-205.15823594,0.00027099,4]
[425179458,1781563855000,-164.72353319,0.00027234,7]
[425179464,1781563855000,-150.22364828,0.00027234,7]
[425179465,1781563855000,-235.51126176,0.00027234,7]
[425179491,1781563855000,-1187.91,0.00027299,2]
[425179487,1781563855000,-150.31196967,0.00027239,7]
[425179485,1781563855000,-153.43346095,0.00027239,7]
[425179492,1781563855000,-160.0,0.00027341,3]
[425179488,1781563855000,-192.30239402,0.00027239,7]
[425179482,1781563855000,-171.27515415,0.00027239,5]
[425179483,1781563855000,-157.64801893,0.00027239,2]
[425179489,1781563855000,-153.97669827,0.00027239,7]
[425179494,1781563855000,-1958.1,0.00027393,7]
[425179495,1781563855000,-160.05643383,0.00027397,7]
[425179496,1781563855000,-192.0677206,0.00027397,7]
[425179502,1781563855000,-472.02705521,0.00027397,2]
[425179501,1781563855000,-427.4210252,0.00027397,2]
[425179497,1781563855000,-252.06573511,0.00027397,7]
[425179499,1781563855000,-500.0,0.00027397,2]
[425179498,1781563855000,-212.90543526,0.00027397,7]
[425179500,1781563855000,-500.0,0.00027397,2]
[425179503,1781563855000,-500.0,0.00027397,15]
[425179459,1781563855000,-165.22291469,0.00027234,7]
[425179484,1781563855000,-182.77549584,0.00027239,7]
[425179486,1781563855000,-163.59558738,0.00027239,7]
[425179493,1781563855000,-394.0,0.00027365,7]
[425179481,1781563855000,-207.18441686,0.00027239,7]
[425179490,1781563855000,-167.44421745,0.00027239,7]
[425179466,1781563855000,-201.12550432,0.00027234,7]
[425179462,1781563855000,-193.89183494,0.00027234,7]
[425179468,1781563855000,-152.60088285,0.00027237,7]
[425179469,1781563855000,-162.48943549,0.00027237,7]
[425179461,1781563855000,-209.91497926,0.00027234,7]
[425179463,1781563855000,-155.22646924,0.00027234,7]
[425179467,1781563855000,-152.99729395,0.00027237,7]
[425179471,1781563855000,-162.87140309,0.00027237,7]
[425179460,1781563855000,-253.33048444,0.00027234,7]
[425179470,1781563855000,-188.63084934,0.00027237,7]
[425179474,1781563855000,-196.61205207,0.00027237,7]
[425179473,1781563855000,-180.65922312,0.00027237,7]
[425179475,1781563855000,-168.09501652,0.00027237,7]
[425179478,1781563855000,-355.60416546,0.00027239,7]
[425179477,1781563855000,-162.33771559,0.00027239,7]
[425179479,1781563855000,-156.37202734,0.00027239,7]
[425179476,1781563855000,-159.45361264,0.00027237,7]
[425179472,1781563855000,-166.34495867,0.00027237,7]
[425179480,1781563855000,-151.18147976,0.00027239,7]
[425179530,1781563856000,-390.399329,0.00027397,2]
[425179537,1781563856000,-300.0,0.00027397,2]
[425179539,1781563856000,-254.896815,0.00027397,2]
[425179547,1781563856000,-254.896815,0.00027397,2]
[425179546,1781563856000,-254.896815,0.00027397,2]
[425179532,1781563856000,-151.0,0.00027397,2]
[425179534,1781563856000,-151.0,0.00027397,2]
[425179531,1781563856000,-390.399331,0.00027397,2]
[425179536,1781563856000,-558.44,0.00027397,2]
[425179542,1781563856000,-254.896815,0.00027397,2]
[425179538,1781563856000,-254.896815,0.00027397,2]
[425179541,1781563856000,-254.896815,0.00027397,2]
[425179554,1781563856000,-150.0,0.00027397,2]
[425179545,1781563856000,-254.896815,0.00027397,2]
[425179543,1781563856000,-254.896815,0.00027397,2]
[425179540,1781563856000,-254.896815,0.00027397,2]
[425179548,1781563856000,-1000.0,0.00027397,30]
[425179553,1781563856000,-363.48292212,0.00027397,7]
[425179550,1781563856000,-190.42591031,0.00027397,7]
[425179556,1781563856000,-346.161993,0.000274,7]
[425179549,1781563856000,-162.84216086,0.00027397,7]
[425179551,1781563856000,-1644.23,0.00027397,30]
[425179552,1781563856000,-175.01224612,0.00027397,2]
[425179528,1781563856000,-390.399329,0.00027397,2]
[425179544,1781563856000,-254.896815,0.00027397,2]
[425179535,1781563856000,-288.51767,0.00027397,2]
[425179514,1781563856000,-390.399329,0.00027397,2]
[425179533,1781563856000,-151.0,0.00027397,2]
[425179555,1781563856000,-430.161999,0.000274,7]
[425179506,1781563856000,-500.0,0.00027397,15]
[425179505,1781563856000,-500.0,0.00027397,15]
[425179504,1781563856000,-500.0,0.00027397,15]
[425179509,1781563856000,-1500.0,0.00027397,2]
[425179513,1781563856000,-390.399329,0.00027397,2]
[425179507,1781563856000,-501.13146997,0.00027397,15]
[425179512,1781563856000,-390.399329,0.00027397,2]
[425179511,1781563856000,-1000.0,0.00027397,20]
[425179508,1781563856000,-155.574181,0.00027397,2]
[425179510,1781563856000,-429.72411305,0.00027397,2]
[425179529,1781563856000,-390.399329,0.00027397,2]
[425179516,1781563856000,-390.399329,0.00027397,2]
[425179518,1781563856000,-390.399329,0.00027397,2]
[425179515,1781563856000,-390.399329,0.00027397,2]
[425179517,1781563856000,-390.399329,0.00027397,2]
[425179520,1781563856000,-390.399329,0.00027397,2]
[425179524,1781563856000,-390.399329,0.00027397,2]
[425179521,1781563856000,-390.399329,0.00027397,2]
[425179523,1781563856000,-390.399329,0.00027397,2]
[425179522,1781563856000,-390.399329,0.00027397,2]
[425179525,1781563856000,-390.399329,0.00027397,2]
[425179527,1781563856000,-390.399329,0.00027397,2]
[425179526,1781563856000,-390.399329,0.00027397,2]
[425179519,1781563856000,-390.399329,0.00027397,2]
[425179557,1781563856000,-2378.46,0.000274,7]
[425179604,1781563856000,-463.28,0.00028137,2]
[425179558,1781563856000,-430.161999,0.000274,14]
[425179584,1781563856000,-338.946264,0.000277,14]
[425179582,1781563856000,-2172.91,0.000277,7]
[425179590,1781563856000,-1187.91,0.00027886,2]
[425179591,1781563856000,-349.161993,0.000279,7]
[425179592,1781563856000,-349.161993,0.000279,14]
[425179594,1781563856000,-335.946264,0.000279,14]
[425179593,1781563856000,-335.946264,0.000279,7]
[425179602,1781563856000,-160.0,0.0002807,3]
[425179595,1781563856000,-160.0,0.00027981,3]
[425179599,1781563856000,-2378.46,0.00028,7]
[425179597,1781563856000,-901.89528683,0.00028,60]
[425179585,1781563856000,-458.48,0.00027762,2]
[425179601,1781563856000,-1780.0,0.00028027,3]
[425179598,1781563856000,-600.0,0.00028,2]
[425179603,1781563856000,-348.0,0.00028117,2]
[425179611,1781563856000,-182.44,0.00028219,7]
[425179610,1781563856000,-182.44,0.00028219,7]
[425179608,1781563856000,-346.161993,0.000282,14]
[425179612,1781563856000,-500.0,0.00028245,16]
[425179605,1781563856000,-203.65936251,0.00028141,2]
[425179607,1781563856000,-346.161993,0.000282,7]
[425179606,1781563856000,-1187.91,0.0002818,2]
[425179609,1781563856000,-563.0,0.00028205,3]
[425179559,1781563856000,-346.161993,0.000274,14]
[425179596,1781563856000,-643.0,0.00028,2]
[425179586,1781563856000,-150.0,0.00027762,7]
[425179600,1781563856000,-2172.91,0.00028,7]
[425179587,1781563856000,-1763.03,0.000278,7]
[425179588,1781563856000,-160.0,0.0002784,3]
[425179563,1781563856000,-500.0,0.00027423,14]
[425179568,1781563856000,-1187.91,0.00027593,2]
[425179566,1781563856000,-500.0,0.000275,7]
[425179567,1781563856000,-2327.0,0.00027542,3]
[425179560,1781563856000,-2172.91,0.000274,7]
[425179561,1781563856000,-389.94627,0.000274,7]
[425179565,1781563856000,-5790.0,0.000275,7]
[425179564,1781563856000,-42169.11,0.000275,2]
[425179578,1781563856000,-607.0,0.00027675,30]
[425179569,1781563856000,-160.0,0.00027661,3]
[425179579,1781563856000,-343.161993,0.000277,7]
[425179562,1781563856000,-389.94627,0.000274,14]
[425179589,1781563856000,-2327.0,0.00027862,3]
[425179570,1781563856000,-563.0,0.00027671,2]
[425179583,1781563856000,-338.946264,0.000277,7]
[425179581,1781563856000,-343.161993,0.000277,14]
[425179580,1781563856000,-2378.46,0.000277,7]
[425179574,1781563856000,-166.73,0.00027671,30]
[425179575,1781563856000,-166.72,0.00027671,30]
[425179576,1781563856000,-191.7,0.00027671,30]
[425179572,1781563856000,-182.44,0.00027671,7]
[425179573,1781563856000,-166.73,0.00027671,30]
[425179571,1781563856000,-182.44,0.00027671,7]
[425179577,1781563856000,-191.7,0.00027671,30]
[425179655,1781563857000,-300.44729655,0.00028522,7]
[425179650,1781563857000,-506.66096888,0.00028522,7]
[425179658,1781563857000,-402.25100864,0.00028522,7]
[425179647,1781563857000,-329.44706638,0.00028522,7]
[425179648,1781563857000,-218.75734509,0.00028522,7]
[425179642,1781563857000,-327.94132436,0.0002851,7]
[425179640,1781563857000,-1981.38255051,0.000285,2]
[425179644,1781563857000,-310.6783098,0.0002851,7]
[425179637,1781563857000,-341.946264,0.000285,7]
[425179657,1781563857000,-471.02252351,0.00028522,7]
[425179645,1781563857000,-334.29489839,0.00028522,7]
[425179643,1781563857000,-364.3197512,0.0002851,7]
[425179649,1781563857000,-330.44582939,0.00028522,7]
[425179659,1781563857000,-380.85182062,0.00028522,7]
[425179652,1781563857000,-387.78366988,0.00028522,7]
[425179654,1781563857000,-196.96256927,0.00028522,7]
[425179653,1781563857000,-310.45293848,0.00028522,7]
[425179661,1781563857000,-305.99458789,0.00028525,7]
[425179660,1781563857000,-218.03766203,0.00028525,7]
[425179662,1781563857000,-305.2017657,0.00028525,7]
[425179664,1781563857000,-325.74280619,0.00028525,7]
[425179663,1781563857000,-377.26169868,0.00028525,7]
[425179665,1781563857000,-332.68991734,0.00028525,7]
[425179666,1781563857000,-361.31844625,0.00028525,7]
[425179667,1781563857000,-153.57279734,0.00028525,7]
[425179656,1781563857000,-245.53912411,0.00028522,7]
[425179638,1781563857000,-341.946264,0.000285,14]
[425179614,1781563857000,-160.0,0.00028295,3]
[425179639,1781563857000,-1981.38255052,0.000285,2]
[425179668,1781563857000,-393.22410413,0.00028525,7]
[425179613,1781563857000,-1421.2,0.00028267,2]
[425179616,1781563857000,-2378.46,0.000283,7]
[425179615,1781563857000,-2462.0,0.00028295,3]
[425179617,1781563857000,-2172.91,0.000283,7]
[425179618,1781563857000,-2327.0,0.00028301,3]
[425179619,1781563857000,-1500.0,0.00028364,15]
[425179621,1781563857000,-1187.91,0.00028474,2]
[425179620,1781563857000,-2000.0,0.0002837,7]
[425179622,1781563857000,-363.2788695,0.00028491,7]
[425179623,1781563857000,-416.9589877,0.00028491,7]
[425179624,1781563857000,-321.72349585,0.00028491,7]
[425179626,1781563857000,-372.80567109,0.00028491,7]
[425179633,1781563857000,-386.96195537,0.00028491,7]
[425179625,1781563857000,-312.17123933,0.00028491,7]
[425179627,1781563857000,-397.77694988,0.00028491,7]
[425179635,1781563857000,-343.161993,0.000285,7]
[425179631,1781563857000,-345.3349215,0.00028491,7]
[425179629,1781563857000,-377.48690376,0.00028491,7]
[425179628,1781563857000,-325.68432172,0.00028491,7]
[425179632,1781563857000,-306.22508939,0.00028491,7]
[425179634,1781563857000,-197.67985986,0.00028499,5]
[425179630,1781563857000,-355.57950224,0.00028491,7]
[425179636,1781563857000,-343.161993,0.000285,14]
[425179646,1781563857000,-315.71779158,0.00028522,7]
[425179641,1781563857000,-1981.38255051,0.000285,2]
[425179669,1781563857000,-336.19003304,0.00028525,7]
[425179651,1781563857000,-419.82995851,0.00028522,7]
[425179675,1781563857000,-342.55030831,0.00028527,5]
[425179701,1781563857000,-1691.59,0.00028653,7]
[425179704,1781563857000,-160.0,0.00028667,3]
[425179699,1781563857000,-1101.81,0.0002863,2]
[425179702,1781563857000,-1080.54,0.00028661,7]
[425179703,1781563857000,-1101.81,0.00028661,7]
[425179700,1781563857000,-1071.62,0.00028653,7]
[425179707,1781563857000,-1101.81,0.00028693,30]
[425179708,1781563857000,-160.0,0.0002871,3]
[425179714,1781563857000,-1101.81,0.00028756,7]
[425179710,1781563857000,-1101.81,0.00028725,2]
[425179709,1781563857000,-1080.54,0.00028725,2]
[425179717,1781563857000,-182.44,0.00028767,7]
[425179698,1781563857000,-2494.67,0.0002863,30]
[425179716,1781563857000,-1187.91,0.00028767,2]
[425179711,1781563857000,-250.0,0.00028739,11]
[425179712,1781563857000,-563.0,0.00028739,3]
[425179713,1781563857000,-1080.54,0.00028756,7]
[425179722,1781563857000,-1080.54,0.00028788,30]
[425179721,1781563857000,-5000.0,0.00028782,15]
[425179719,1781563857000,-153.13,0.00028767,53]
[425179723,1781563857000,-1101.81,0.00028788,30]
[425179720,1781563857000,-153.84237965,0.00028767,2]
[425179724,1781563857000,-2859.7,0.00028797,7]
[425179725,1781563857000,-2822.99,0.00028797,7]
[425179726,1781563857000,-1974.44,0.00028797,7]
[425179670,1781563857000,-318.90722528,0.00028525,7]
[425179718,1781563857000,-182.44,0.00028767,7]
[425179695,1781563857000,-2822.99,0.0002863,30]
[425179715,1781563857000,-1389.63,0.00028767,30]
[425179697,1781563857000,-1974.44,0.0002863,30]
[425179676,1781563857000,-315.29603785,0.00028527,2]
[425179696,1781563857000,-1691.59,0.0002863,30]
[425179671,1781563857000,-324.67543118,0.00028527,7]
[425179673,1781563857000,-312.74405468,0.00028527,7]
[425179678,1781563857000,-327.19117477,0.00028527,7]
[425179677,1781563857000,-365.55099168,0.00028527,7]
[425179674,1781563857000,-414.36883372,0.00028527,7]
[425179672,1781563857000,-711.20833091,0.00028527,7]
[425179680,1781563857000,-307.95339653,0.00028528,7]
[425179681,1781563857000,-512.0,0.00028573,2]
[425179682,1781563857000,-544.0,0.00028588,7]
[425179683,1781563857000,-5790.0,0.000286,7]
[425179689,1781563857000,-2327.0,0.00028615,3]
[425179679,1781563857000,-300.62393935,0.00028527,7]
[425179693,1781563857000,-1071.62,0.0002863,30]
[425179694,1781563857000,-1080.54,0.0002863,2]
[425179727,1781563857000,-2494.67,0.00028797,7]
[425179705,1781563857000,-160.0,0.00028692,3]
[425179691,1781563857000,-226.11,0.0002863,2]
[425179692,1781563857000,-2859.7,0.0002863,30]
[425179685,1781563857000,-2172.91,0.000286,7]
[425179706,1781563857000,-1080.54,0.00028693,30]
[425179686,1781563857000,-3046.7131296,0.000286,2]
[425179687,1781563857000,-3046.71312959,0.000286,2]
[425179684,1781563857000,-2378.46,0.000286,7]
[425179690,1781563857000,-382.22,0.0002863,2]
[425179688,1781563857000,-3046.71312959,0.000286,2]
[425179768,1781563858000,-500.0,0.00029,2]
[425179769,1781563858000,-500.0,0.00029,2]
[425179764,1781563858000,-1101.81,0.00028979,30]
[425179766,1781563858000,-1691.59,0.00028986,30]
[425179763,1781563858000,-1080.54,0.00028979,30]
[425179765,1781563858000,-1071.62,0.00028986,30]
[425179762,1781563858000,-40535.57923183,0.0002897,6]
[425179761,1781563858000,-2494.67,0.00028964,2]
[425179756,1781563858000,-1080.54,0.00028947,7]
[425179759,1781563858000,-2822.99,0.00028964,2]
[425179779,1781563858000,-500.0,0.00029,2]
[425179760,1781563858000,-1974.44,0.00028964,2]
[425179770,1781563858000,-500.0,0.00029,2]
[425179781,1781563858000,-42524.3077556,0.00029,2]
[425179775,1781563858000,-500.0,0.00029,2]
[425179774,1781563858000,-500.0,0.00029,2]
[425179773,1781563858000,-500.0,0.00029,2]
[425179772,1781563858000,-500.0,0.00029,2]
[425179776,1781563858000,-500.0,0.00029,2]
[425179777,1781563858000,-500.0,0.00029,2]
[425179778,1781563858000,-500.0,0.00029,2]
[425179792,1781563858000,-1251.80052245,0.00029,7]
[425179780,1781563858000,-508.0,0.00029,10]
[425179789,1781563858000,-210.48452137,0.00029,2]
[425179782,1781563858000,-41026.77210203,0.00029,2]
[425179758,1781563858000,-2859.7,0.00028964,2]
[425179771,1781563858000,-500.0,0.00029,2]
[425179767,1781563858000,-11230.47402541,0.0002899,7]
[425179730,1781563858000,-338.946264,0.000288,7]
[425179751,1781563858000,-1500.0,0.00028943,15]
[425179784,1781563858000,-1002.14628356,0.00029,2]
[425179729,1781563858000,-349.161993,0.000288,14]
[425179731,1781563858000,-338.946264,0.000288,14]
[425179732,1781563858000,-1071.62,0.00028819,2]
[425179733,1781563858000,-1691.59,0.00028819,2]
[425179734,1781563858000,-202.0,0.0002882,30]
[425179736,1781563858000,-1101.81,0.0002882,2]
[425179737,1781563858000,-1080.54,0.00028852,7]
[425179735,1781563858000,-1080.54,0.0002882,2]
[425179741,1781563858000,-50000.0,0.000289,2]
[425179742,1781563858000,-42169.11,0.000289,2]
[425179740,1781563858000,-1101.81,0.00028883,30]
[425179757,1781563858000,-1101.81,0.00028947,7]
[425179739,1781563858000,-1080.54,0.00028883,30]
[425179743,1781563858000,-2378.46,0.000289,7]
[425179744,1781563858000,-200.0,0.000289,2]
[425179746,1781563858000,-1101.81,0.00028915,2]
[425179749,1781563858000,-1500.0,0.00028943,15]
[425179752,1781563858000,-1500.0,0.00028943,15]
[425179750,1781563858000,-1500.0,0.00028943,15]
[425179753,1781563858000,-1835.383212,0.00028943,15]
[425179745,1781563858000,-1080.54,0.00028915,2]
[425179747,1781563858000,-2327.0,0.00028917,3]
[425179754,1781563858000,-1192.36,0.00028946,7]
[425179755,1781563858000,-877.34,0.00028946,30]
[425179748,1781563858000,-1500.0,0.00028943,15]
[425179738,1781563858000,-1101.81,0.00028852,7]
[425179783,1781563858000,-2628.53123069,0.00029,2]
[425179728,1781563858000,-349.161993,0.000288,7]
[425179791,1781563858000,-10000.0,0.00029,2]
[425179825,1781563858000,-153.0,0.00029089,30]
[425179822,1781563858000,-160.0,0.00029089,30]
[425179821,1781563858000,-620.0,0.00029089,30]
[425179826,1781563858000,-267.0,0.00029089,30]
[425179828,1781563858000,-1080.54,0.00029105,2]
[425179827,1781563858000,-500.0,0.00029093,17]
[425179824,1781563858000,-282.0,0.00029089,30]
[425179820,1781563858000,-166.0,0.00029085,30]
[425179823,1781563858000,-152.0,0.00029089,30]
[425179829,1781563858000,-1101.81,0.00029105,2]
[425179838,1781563858000,-1974.44,0.00029132,30]
[425179830,1781563858000,-401.81411277,0.0002913,7]
[425179817,1781563858000,-159.0,0.00029085,30]
[425179834,1781563858000,-322.23059967,0.0002913,5]
[425179837,1781563858000,-2822.99,0.00029132,30]
[425179832,1781563858000,-300.0,0.0002913,20]
[425179833,1781563858000,-500.0,0.0002913,5]
[425179835,1781563858000,-378.13809427,0.0002913,7]
[425179836,1781563858000,-2859.7,0.00029132,30]
[425179840,1781563858000,-1080.54,0.00029137,7]
[425179839,1781563858000,-2494.67,0.00029132,30]
[425179841,1781563858000,-1101.81,0.00029137,7]
[425179842,1781563858000,-1071.62,0.00029152,7]
[425179843,1781563858000,-1691.59,0.00029152,7]
[425179845,1781563858000,-1101.81,0.00029169,30]
[425179786,1781563858000,-220.02544756,0.00029,2]
[425179831,1781563858000,-200.0,0.0002913,20]
[425179819,1781563858000,-224.0,0.00029085,30]
[425179844,1781563858000,-1080.54,0.00029169,30]
[425179811,1781563858000,-1080.54,0.00029042,7]
[425179818,1781563858000,-605.0,0.00029085,30]
[425179787,1781563858000,-2324.96507076,0.00029,2]
[425179790,1781563858000,-7010.10833548,0.00029,2]
[425179788,1781563858000,-583.0,0.00029,2]
[425179797,1781563858000,-346.161993,0.00029,7]
[425179795,1781563858000,-500.0,0.00029,2]
[425179799,1781563858000,-500.0,0.00029,2]
[425179804,1781563858000,-500.0,0.00029,2]
[425179794,1781563858000,-569.97292255,0.00029,2]
[425179793,1781563858000,-284.98646128,0.00029,2]
[425179796,1781563858000,-210.48452136,0.00029,2]
[425179800,1781563858000,-248.82,0.00029,2]
[425179798,1781563858000,-500.0,0.00029,2]
[425179785,1781563858000,-9030.69242811,0.00029,2]
[425179801,1781563858000,-2172.91,0.00029,7]
[425179814,1781563858000,-1101.81,0.00029074,30]
[425179812,1781563858000,-1101.81,0.00029042,7]
[425179816,1781563858000,-153.0,0.00029085,30]
[425179813,1781563858000,-1080.54,0.00029074,30]
[425179803,1781563858000,-500.0,0.00029,2]
[425179809,1781563858000,-2327.0,0.00029012,3]
[425179815,1781563858000,-2214.0,0.00029085,30]
[425179810,1781563858000,-2327.0,0.00029012,3]
[425179806,1781563858000,-500.0,0.00029,2]
[425179807,1781563858000,-1080.54,0.0002901,2]
[425179805,1781563858000,-165.62953097,0.00029,2]
[425179802,1781563858000,-346.161993,0.00029,14]
[425179808,1781563858000,-1101.81,0.0002901,2]
[425179893,1781563859000,-395.35971973,0.00029358,5]
[425179885,1781563859000,-566.23035564,0.0002935,7]
[425179881,1781563859000,-225.70663089,0.0002935,7]
[425179883,1781563859000,-596.66542481,0.0002935,7]
[425179878,1781563859000,-165.50677754,0.0002935,7]
[425179876,1781563859000,-468.256859,0.0002935,7]
[425179884,1781563859000,-488.52648258,0.0002935,7]
[425179880,1781563859000,-217.46657384,0.0002935,7]
[425179882,1781563859000,-245.77373945,0.0002935,7]
[425179877,1781563859000,-232.82069373,0.0002935,7]
[425179879,1781563859000,-559.20850664,0.0002935,7]
[425179892,1781563859000,-337.20851425,0.00029357,7]
[425179890,1781563859000,-459.33763409,0.0002935,7]
[425179891,1781563859000,-580.44293306,0.0002935,7]
[425179886,1781563859000,-346.5559648,0.0002935,7]
[425179888,1781563859000,-533.36925336,0.0002935,7]
[425179895,1781563859000,-491.91198654,0.00029368,7]
[425179894,1781563859000,-365.27415773,0.00029368,7]
[425179887,1781563859000,-174.97618781,0.0002935,7]
[425179897,1781563859000,-367.26341192,0.00029368,7]
[425179896,1781563859000,-546.4796268,0.00029368,7]
[425179898,1781563859000,-466.0174647,0.00029368,7]
[425179907,1781563859000,-495.66874408,0.00029381,7]
[425179899,1781563859000,-573.0,0.00029378,10]
[425179875,1781563859000,-482.58524378,0.0002935,7]
[425179889,1781563859000,-518.00238225,0.0002935,7]
[425179874,1781563859000,-202.45675445,0.0002935,7]
[425179860,1781563859000,-343.161993,0.000293,14]
[425179872,1781563859000,-246.69426731,0.0002935,7]
[425179850,1781563859000,-391.01,0.00029212,17]
[425179849,1781563859000,-253.09,0.00029212,17]
[425179847,1781563859000,-1101.81,0.00029201,2]
[425179848,1781563859000,-198.92,0.00029212,17]
[425179846,1781563859000,-1080.54,0.00029201,2]
[425179852,1781563859000,-1101.95,0.00029232,7]
[425179851,1781563859000,-1080.54,0.00029232,7]
[425179855,1781563859000,-2822.99,0.00029299,7]
[425179853,1781563859000,-563.0,0.00029273,4]
[425179854,1781563859000,-2859.7,0.00029299,7]
[425179857,1781563859000,-2494.67,0.00029299,7]
[425179858,1781563859000,-343.161993,0.000293,7]
[425179856,1781563859000,-1974.44,0.00029299,7]
[425179859,1781563859000,-349.161993,0.000293,7]
[425179861,1781563859000,-349.161993,0.000293,14]
[425179862,1781563859000,-335.946264,0.000293,7]
[425179863,1781563859000,-335.946264,0.000293,14]
[425179864,1781563859000,-1071.62,0.00029319,2]
[425179869,1781563859000,-625.43848154,0.0002935,7]
[425179868,1781563859000,-233.93731555,0.0002935,7]
[425179867,1781563859000,-544.91830426,0.0002935,7]
[425179870,1781563859000,-211.86948678,0.0002935,7]
[425179873,1781563859000,-267.69545994,0.0002935,7]
[425179865,1781563859000,-1691.59,0.00029319,2]
[425179871,1781563859000,-227.13480141,0.0002935,7]
[425179866,1781563859000,-200.0,0.0002933,20]
[425179905,1781563859000,-491.81136408,0.00029381,7]
[425179903,1781563859000,-589.8361562,0.00029381,7]
[425179900,1781563859000,-193.13878189,0.00029381,7]
[425179936,1781563859000,-453.54443927,0.00029386,7]
[425179940,1781563859000,-460.30038286,0.00029386,7]
[425179935,1781563859000,-1066.81249637,0.00029386,7]
[425179939,1781563859000,-548.32648752,0.00029386,7]
[425179938,1781563859000,-513.82546246,0.00029386,5]
[425179941,1781563859000,-490.78676215,0.00029387,7]
[425179937,1781563859000,-621.55325057,0.00029386,7]
[425179947,1781563859000,-627.24,0.000294,7]
[425179951,1781563859000,-2859.7,0.00029467,2]
[425179950,1781563859000,-1122.52583918,0.000294,5]
[425179948,1781563859000,-595.67,0.000294,7]